bitfinex-derivatives/quotes_BTCF0:USTF0_20260127
["timestamp","ask_amount","ask_price","bid_price","bid_amount"]
[1769545448134,0.10104,89068.0,89052.0,0.00988722]
[1769545448323,0.09362838,89068.0,89052.0,0.00988722]
[1769545448629,0.00258838,89068.0,89052.0,0.00988722]
[1769545448827,0.00011187,89079.0,89056.0,0.011243]
[1769545449032,0.00011187,89079.0,89052.0,0.00988722]
[1769545449033,0.10104,89082.0,89064.0,0.00988722]
[1769545449333,0.00925791,89099.0,89070.0,0.011242]
[1769545449334,0.10108,89089.0,89070.0,0.011242]
[1769545449525,0.10108,89094.0,89079.0,0.011241]
[1769545449729,0.09916601,89094.0,89079.0,0.011241]
[1769545450026,0.00271948,89093.0,89072.0,0.10108]
[1769545450224,0.00271948,89093.0,89074.0,0.011241]
[1769545450430,0.10108,89096.0,89075.0,0.00030563]
[1769545450828,0.10108,89098.0,89075.0,0.00030563]
[1769545451018,0.2958,89105.0,89078.0,0.00017453]
[1769545451019,0.00258838,89105.0,89078.0,0.00017453]
[1769545451222,0.00258838,89104.0,89078.0,0.00017453]
[1769545451433,0.00258838,89104.0,89072.0,0.10108]
[1769545451434,0.01013173,89103.0,89073.0,0.011241]
[1769545451629,0.00999999,89091.0,89058.0,0.10108]
[1769545451829,0.01124,89084.0,89058.0,0.10108]
[1769545452136,0.01026995,89080.0,89058.0,0.10108]
[1769545452428,0.10366838,89079.0,89047.0,0.10108]
[1769545452630,0.29584,89087.0,89064.0,0.011242]
[1769545452833,0.29584,89087.0,89050.0,0.14308337]
[1769545452834,0.00258838,89086.0,89067.0,0.011242]
[1769545453029,0.10108,89085.0,89067.0,0.011242]
[1769545453234,0.00258838,89084.0,89058.0,0.10108]
[1769545453435,0.00258838,89084.0,89070.0,0.011242]
[1769545453635,0.00258838,89084.0,89066.0,0.011242]
[1769545455334,0.00258838,89084.0,89062.0,0.011243]
[1769545455533,0.01382838,89084.0,89062.0,0.011243]
[1769545456742,0.01045518,89078.0,89048.0,0.00012237]
[1769545457034,0.011239,89092.0,89072.0,0.011242]
[1769545457232,0.00258838,89091.0,89068.0,0.011242]
[1769545457430,0.10112,89093.0,89078.0,0.011241]
[1769545457636,0.10112,89109.0,89079.0,0.10112]
[1769545457837,0.011237,89107.0,89084.0,0.01124]
[1769545458034,0.00266888,89106.0,89087.0,0.01124]
[1769545458541,0.00266888,89106.0,89083.0,0.01124]
[1769545458743,0.00266888,89106.0,89080.0,0.10112]
[1769545459345,0.011237,89105.0,89081.0,0.01124]
[1769545459536,0.00258838,89104.0,89081.0,0.01124]
[1769545459838,0.01382638,89104.0,89081.0,0.01124]
[1769545460040,0.011238,89101.0,89081.0,0.01124]
[1769545460239,0.00258838,89100.0,89081.0,0.01124]
[1769545461035,0.00258838,89100.0,89080.0,0.10112]
[1769545461036,0.011238,89099.0,89080.0,0.10112]
[1769545461236,0.011238,89097.0,89080.0,0.10112]
[1769545461541,0.00258838,89096.0,89081.0,0.10112]
[1769545461741,0.00258838,89096.0,89079.0,0.10112]
[1769545462039,0.00258838,89096.0,89079.0,0.112361]
[1769545462740,0.011239,89095.0,89079.0,0.10112]
[1769545462944,0.00258838,89094.0,89079.0,0.10112]
[1769545463643,0.011239,89093.0,89079.0,0.10112]
[1769545463833,0.011239,89091.0,89079.0,0.10112]
[1769545464035,0.00258838,89090.0,89079.0,0.10112]
[1769545464344,8.05e-05,89089.0,89068.0,0.10112]
[1769545464528,0.00258838,89088.0,89068.0,0.10112]
[1769545465233,0.00258838,89088.0,89060.0,0.29596]
[1769545465234,0.01060412,89081.0,89054.0,0.10112]
[1769545465536,0.11494938,89080.0,89054.0,0.10112]
[1769545465841,0.11494938,89080.0,89061.0,0.011243]
[1769545466143,0.01124,89085.0,89055.0,0.12351839]
[1769545466441,0.10370838,89084.0,89070.0,0.011242]
[1769545466836,0.00258838,89084.0,89073.0,0.011241]
[1769545467036,0.011241,89079.0,89054.0,0.10112]
[1769545467229,0.00258838,89078.0,89064.0,0.011243]
[1769545467638,0.011241,89075.0,89057.0,0.011243]
[1769545467837,0.00258838,89074.0,89056.0,0.011244]
[1769545468051,0.011241,89073.0,89055.0,0.12351398]
[1769545468240,0.00258838,89072.0,89054.0,0.10112]
[1769545468738,0.01124,89086.0,89067.0,0.011242]
[1769545469042,0.01124,89086.0,89055.0,0.11228007]
[1769545469043,0.00258838,89086.0,89055.0,0.11228007]
[1769545469237,0.10112,89085.0,89057.0,0.011243]
[1769545469444,0.10370838,89085.0,89071.0,0.011242]
[1769545469630,0.10112,89084.0,89054.0,0.10112]
[1769545469833,0.00258838,89083.0,89065.0,0.011242]
[1769545470038,0.011241,89079.0,89054.0,0.10112]
[1769545470344,0.011241,89077.0,89055.0,0.11226998]
[1769545470546,0.00258838,89076.0,89055.0,0.11226998]
[1769545470755,0.00258838,89076.0,89067.0,0.011242]
[1769545471140,0.11236,89084.0,89054.0,0.10112]
[1769545471141,0.10112,89084.0,89054.0,0.10112]
[1769545471446,8.05e-05,89089.0,89086.0,0.01124]
[1769545471642,0.011239,89096.0,89079.0,0.011241]
[1769545471840,0.00258838,89095.0,89079.0,0.011241]
[1769545472040,0.00258838,89095.0,89081.0,0.01124]
[1769545472241,0.00258838,89095.0,89078.0,0.011241]
[1769545472440,0.00258838,89095.0,89082.0,0.01124]
[1769545472640,0.10116,89099.0,89085.0,0.01124]
[1769545472846,0.00258838,89098.0,89082.0,0.01124]
[1769545473041,0.00258838,89098.0,89075.0,0.10116]
[1769545473241,0.10116,89103.0,89078.0,0.011241]
[1769545473445,0.00258838,89103.0,89088.0,0.011239]
[1769545473748,0.00258838,89103.0,89087.0,0.01124]
[1769545474538,0.00258838,89103.0,89079.0,0.011241]
[1769545474742,0.011238,89101.0,89075.0,0.10116]
[1769545475044,0.00258838,89100.0,89076.0,0.11223974]
[1769545475550,0.011238,89099.0,89081.0,0.01124]
[1769545475750,0.00258838,89098.0,89081.0,0.01124]
[1769545476452,0.00258838,89098.0,89082.0,0.01124]
[1769545477153,0.011238,89097.0,89080.0,0.01124]
[1769545477342,0.00258838,89096.0,89081.0,0.01124]
[1769545478151,0.00258838,89096.0,89075.0,0.10116]
[1769545478352,0.00258838,89096.0,89081.0,0.01124]
[1769545479154,0.00258838,89096.0,89083.0,0.01124]
[1769545479455,0.011238,89101.0,89083.0,0.01124]
[1769545479754,0.01082229,89125.0,89086.0,0.01124]
[1769545479956,0.10370838,89120.0,89107.0,0.011237]
[1769545480452,0.10370838,89120.0,89086.0,0.296]
[1769545480453,0.011236,89114.0,89101.0,0.10112]
[1769545480659,0.011237,89112.0,89101.0,0.10112]
[1769545480845,0.00258838,89111.0,89101.0,0.10112]
[1769545481442,0.011237,89109.0,89094.0,0.011239]
[1769545481644,0.011238,89104.0,89090.0,0.10112]
[1769545481848,0.011238,89100.0,89090.0,0.10112]
[1769545482039,0.011239,89095.0,89067.0,0.21782271]
[1769545482240,0.10112,89112.0,89070.0,0.011242]
[1769545482449,0.011236,89120.0,89105.0,0.011237]
[1769545482746,0.00086282,89119.0,89107.0,0.011237]
[1769545482953,0.00086282,89119.0,89093.0,0.011239]
[1769545482954,0.00086282,89119.0,89109.0,0.011237]
[1769545483147,0.00086282,89119.0,89110.0,0.00258838]
[1769545483552,0.00086282,89119.0,89111.0,0.011237]
[1769545483755,0.011235,89126.0,89112.0,0.00258838]
[1769545483949,0.00086282,89125.0,89112.0,0.01382438]
[1769545485158,0.00086282,89125.0,89101.0,0.10112]
[1769545485354,0.011235,89123.0,89106.0,0.011237]
[1769545485549,0.00086282,89122.0,89107.0,0.00258838]
[1769545485762,0.011235,89121.0,89107.0,0.00258838]
[1769545485949,0.00086282,89120.0,89107.0,0.00258838]
[1769545486150,0.00086282,89120.0,89107.0,0.01382538]
[1769545487062,0.00086282,89120.0,89107.0,0.00258838]
[1769545487259,0.011236,89116.0,89079.0,0.011241]
[1769545487456,0.011236,89114.0,89089.0,0.00258838]
[1769545487658,0.011237,89112.0,89094.0,0.011239]
[1769545487960,0.10112,89116.0,89095.0,0.00258838]
[1769545488261,0.10112,89117.0,89108.0,0.011237]
[1769545488461,0.10198282,89117.0,89109.0,0.00258838]
[1769545488661,0.10112,89117.0,89109.0,0.00258838]
[1769545489061,0.011237,89112.0,89090.0,0.10112]
[1769545489253,0.00086282,89111.0,89098.0,0.011238]
[1769545489458,0.00086282,89111.0,89099.0,0.00258838]
[1769545489863,0.011237,89109.0,89099.0,0.00258838]
[1769545490068,0.01096679,89108.0,89070.0,0.29596]
[1769545490259,0.011238,89102.0,89086.0,0.01124]
[1769545490564,0.10112,89104.0,89087.0,0.00258838]
[1769545490864,0.011238,89102.0,89087.0,0.00258838]
[1769545491065,0.011238,89100.0,89087.0,0.00258838]
[1769545491253,0.00086282,89099.0,89083.0,0.10112]
[1769545491455,0.00086282,89099.0,89084.0,0.00258838]
[1769545492250,0.10112,89106.0,89084.0,0.00258838]
[1769545492456,0.112357,89105.0,89084.0,0.00258838]
[1769545492664,0.00086282,89104.0,89084.0,0.00258838]
[1769545493660,0.00086282,89104.0,89090.0,0.011239]
[1769545493859,0.00086282,89104.0,89091.0,0.00258838]
[1769545494062,0.00086282,89104.0,89095.0,0.011239]
[1769545494257,0.10112,89109.0,89101.0,0.011238]
[1769545494465,0.01012369,89119.0,89102.0,0.00258838]
[1769545494466,0.011236,89119.0,89102.0,0.00258838]
[1769545494968,0.011236,89114.0,89096.0,0.011238]
[1769545495167,0.02135325,89116.0,89095.0,0.10112]
[1769545495366,0.011238,89104.0,89088.0,0.10112]
[1769545495663,0.011238,89104.0,89089.0,0.00258838]
[1769545496167,0.01015326,89113.0,89090.0,0.011239]
[1769545496367,0.01015326,89113.0,89091.0,0.00258838]
[1769545496568,0.10112,89120.0,89093.0,0.011239]
[1769545496871,0.011237,89112.0,89095.0,0.011239]
[1769545497062,0.011236,89115.0,89099.0,0.011238]
[1769545497365,0.011236,89113.0,89100.0,0.00258838]
[1769545497571,0.10112,89118.0,89100.0,0.00258838]
[1769545497761,0.10112,89118.0,89104.0,0.011237]
[1769545497962,0.10112,89118.0,89105.0,0.00258838]
[1769545498156,0.011236,89115.0,89101.0,0.011238]
[1769545498361,0.10112,89118.0,89098.0,0.011238]
[1769545498561,0.10112,89118.0,89099.0,0.00258838]
[1769545498761,0.011236,89115.0,89099.0,0.00258838]
[1769545498962,0.10112,89118.0,89099.0,0.01382638]
[1769545499274,0.011237,89112.0,89099.0,0.00258838]
[1769545499464,0.10112,89118.0,89099.0,0.00258838]
[1769545499671,0.011237,89110.0,89096.0,0.011238]
[1769545499963,0.11122304,89118.0,89096.0,0.011238]
[1769545500168,0.11122304,89118.0,89071.0,0.27870894]
[1769545500169,0.01010304,89116.0,89091.0,0.011239]
[1769545500363,0.01010304,89110.0,89097.0,0.011238]
[1769545500564,0.01010304,89110.0,89098.0,0.00258838]
[1769545500773,0.011237,89107.0,89091.0,0.10112]
[1769545500968,0.011238,89103.0,89092.0,0.00258838]
[1769545501270,0.011237,89110.0,89095.0,0.011239]
[1769545501458,0.01010304,89117.0,89091.0,0.10112]
[1769545501459,0.011237,89111.0,89096.0,0.01382638]
[1769545501665,0.01010304,89117.0,89096.0,0.00258838]
[1769545501865,0.011237,89110.0,89096.0,0.00258838]
[1769545502060,0.011237,89105.0,89091.0,0.10112]
[1769545502264,0.011238,89102.0,89091.0,0.00258838]
[1769545502475,0.011238,89100.0,89087.0,0.10112]
[1769545502673,0.002588,89099.0,89068.0,0.21782271]
[1769545502974,0.002588,89099.0,89069.0,0.0008632]
[1769545502975,0.011239,89090.0,89069.0,0.0008632]
[1769545503178,0.002588,89089.0,89069.0,0.0008632]
[1769545503559,0.002588,89089.0,89076.0,0.011241]
[1769545503760,0.002588,89089.0,89069.0,0.0008632]
[1769545503761,0.01009713,89088.0,89048.0,0.00012237]
[1769545503973,0.10112,89091.0,89057.0,0.10112]
[1769545503974,0.01009713,89086.0,89057.0,0.10112]
[1769545504275,0.011242,89069.0,89057.0,0.1019832]
[1769545504467,0.002588,89068.0,89048.0,0.01136737]
[1769545504665,0.011242,89067.0,89050.0,0.011244]
[1769545504878,0.002588,89066.0,89056.0,0.011243]
[1769545505071,0.103708,89070.0,89057.0,0.0008632]
[1769545505372,0.11495,89070.0,89057.0,0.0008632]
[1769545505776,0.103708,89070.0,89057.0,0.0008632]
[1769545506160,0.103708,89070.0,89057.0,0.0121062]
[1769545506568,0.002588,89070.0,89057.0,0.0121062]
[1769545506768,0.103708,89070.0,89057.0,0.0121062]
[1769545507170,0.103708,89070.0,89048.0,0.00012237]
[1769545507171,0.010263,89069.0,89048.0,0.00012237]
[1769545507478,0.103708,89068.0,89057.0,0.0008632]
[1769545507675,0.103708,89068.0,89048.0,0.00012237]
[1769545507977,0.011243,89064.0,89049.0,0.0008632]
[1769545508284,0.002588,89063.0,89049.0,0.0008632]
[1769545508467,0.002588,89063.0,89051.0,0.011244]
[1769545508669,0.002588,89063.0,89052.0,0.0008632]
[1769545509374,0.002588,89063.0,89049.0,0.011244]
[1769545509571,0.002588,89063.0,89050.0,0.0008632]
[1769545510072,0.002588,89063.0,89048.0,0.00012237]
[1769545510271,0.002588,89063.0,89048.0,0.00098557]
[1769545510480,0.011241,89076.0,89048.0,0.00098557]
[1769545510671,0.103748,89075.0,89063.0,0.011243]
[1769545510978,0.103748,89075.0,89064.0,0.0008632]
[1769545511170,0.114989,89075.0,89064.0,0.0008632]
[1769545511482,0.00946014,89074.0,89054.0,0.011244]
[1769545511674,0.02070314,89065.0,89049.0,0.011244]
[1769545511872,0.10374838,89064.0,89048.0,0.00012237]
[1769545512176,0.011241,89073.0,89057.0,0.011243]
[1769545512370,0.00946014,89071.0,89050.0,0.011244]
[1769545512572,0.02070214,89068.0,89052.0,0.011244]
[1769545512775,0.00258838,89070.0,89048.0,0.00012237]
[1769545512776,0.01204852,89067.0,89049.0,0.011244]
[1769545512967,0.00946014,89066.0,89048.0,0.00012237]
[1769545513276,0.011243,89060.0,89044.0,0.011245]
[1769545513576,0.011243,89060.0,89043.0,0.011245]
[1769545513577,0.00258838,89059.0,89043.0,0.011245]
[1769545513785,0.00012237,89065.0,89048.0,0.011245]
[1769545513976,0.10374838,89064.0,89048.0,0.011245]
[1769545514778,0.00012237,89065.0,89047.0,0.0090046]
[1769545514983,0.00258838,89063.0,89050.0,0.011244]
[1769545515371,0.00258838,89063.0,89046.0,0.011245]
[1769545515784,0.00258838,89063.0,89050.0,0.011244]
[1769545516379,0.00258838,89063.0,89047.0,0.011245]
[1769545516777,0.00946014,89062.0,89042.0,0.10112]
[1769545516978,0.00946014,89060.0,89042.0,0.10112]
[1769545517179,0.011244,89057.0,89042.0,0.10112]
[1769545517383,0.011244,89053.0,89034.0,0.011246]
[1769545517682,0.011246,89040.0,89033.0,0.00734436]
[1769545517875,0.00258838,89039.0,89033.0,0.00734436]
[1769545518278,0.00024482,89037.0,89010.0,0.00991839]
[1769545518577,0.011247,89033.0,89013.0,0.011249]
[1769545518775,0.39991075,89036.0,89014.0,0.0112495]
[1769545518776,0.011248,89024.0,89014.0,0.0112495]
[1769545518975,0.00258838,89023.0,89010.0,0.0112495]
[1769545519174,0.00258838,89023.0,89010.0,0.0224985]
[1769545519375,0.00258838,89023.0,89013.0,0.011249]
[1769545519580,0.112407,89032.0,89013.0,0.011249]
[1769545519782,0.011247,89030.0,89014.0,0.0112495]
[1769545519983,0.00258838,89029.0,89015.0,0.011249]
[1769545520980,0.00258838,89029.0,89018.0,0.011248]
[1769545521184,0.29616237,89036.0,89025.0,0.01001292]
[1769545521185,3.7e-07,89036.0,89025.0,0.01001292]
[1769545521486,0.011244,89049.0,89028.0,0.011247]
[1769545521671,0.011242,89069.0,89024.0,0.10116]
[1769545521672,0.011245,89044.0,89024.0,0.10116]
[1769545521875,0.00258838,89043.0,89024.0,0.10116]
[1769545522072,0.011244,89056.0,89038.0,0.011246]
[1769545522378,0.10374838,89055.0,89038.0,0.011246]
[1769545522678,0.011244,89054.0,89038.0,0.011246]
[1769545522882,0.10374838,89055.0,89027.0,0.01001706]
[1769545522883,0.00258838,89053.0,89027.0,0.01001706]
[1769545523085,0.00258838,89053.0,89044.0,0.011245]
[1769545523387,0.10116,89056.0,89045.0,0.0017256]
[1769545523873,0.10116,89056.0,89045.0,0.00258838]
[1769545524079,0.10116,89056.0,89031.0,0.02126656]
[1769545524278,0.011244,89053.0,89034.0,0.011246]
[1769545524478,0.011244,89050.0,89035.0,0.00258838]
[1769545524878,0.011245,89048.0,89035.0,0.00258838]
[1769545525187,0.10116,89056.0,89036.0,0.0112495]
[1769545525385,0.10137613,89056.0,89036.0,0.01383788]
[1769545525582,0.011244,89051.0,89036.0,0.01383788]
[1769545525780,0.10137613,89056.0,89040.0,0.011246]
[1769545525985,0.10116,89056.0,89041.0,0.00258838]
[1769545526475,0.10116,89056.0,89044.0,0.011245]
[1769545526674,0.10116,89056.0,89045.0,0.00258838]
[1769545527683,0.011243,89061.0,89045.0,0.00258838]
[1769545527884,0.1012,89056.0,89045.0,0.00258838]
[1769545528087,0.1012,89056.0,89041.0,0.011245]
[1769545528291,0.1012,89056.0,89042.0,0.00258838]
[1769545528588,0.011244,89055.0,89042.0,0.00258838]
[1769545528797,0.1012,89056.0,89042.0,0.00258838]
[1769545529092,0.1012,89062.0,89047.0,0.011245]
[1769545529290,0.011243,89064.0,89048.0,0.00258838]
[1769545529482,0.011243,89062.0,89048.0,0.00258838]
[1769545530692,0.00028197,89048.0,89022.0,0.011248]
[1769545530879,0.00028197,89044.0,89013.0,0.009906]
[1769545531076,0.00028197,89042.0,89014.0,8.2e-07]
[1769545531292,0.39732,89051.0,89014.0,8.2e-07]
[1769545531293,0.011248,89018.0,89014.0,8.2e-07]
[1769545531495,0.011248,89020.0,89014.0,8.2e-07]
[1769545531694,0.011248,89020.0,89006.0,0.01123513]
[1769545531695,0.00028197,89022.0,89006.0,1.3e-07]
[1769545531880,0.011249,89014.0,89006.0,1.3e-07]
[1769545532082,0.011248,89020.0,89006.0,0.00258851]
[1769545532281,0.112448,89025.0,89006.0,0.01238977]
[1769545532478,0.1012,89025.0,89006.0,0.01238977]
[1769545532682,0.00011225,89024.0,89013.0,0.011249]
[1769545532887,0.00011225,89024.0,89007.0,0.11100126]
[1769545532888,0.00011225,89024.0,89014.0,0.00258838]
[1769545534088,0.01136025,89024.0,89014.0,0.00258838]
[1769545534290,0.00011225,89024.0,89014.0,0.00258838]
[1769545534588,0.0005962,89032.0,89014.0,0.00258838]
[1769545534589,0.011246,89034.0,89018.0,0.011248]
[1769545534795,0.011246,89034.0,89019.0,0.00258838]
[1769545534981,0.011247,89032.0,89019.0,0.00258838]
[1769545535187,0.011247,89030.0,89019.0,0.00258838]
[1769545535996,0.112446,89038.0,89020.0,0.011248]
[1769545536188,0.011245,89043.0,89023.0,0.0098296]
[1769545536388,0.1012,89048.0,89023.0,0.0098296]
[1769545536389,0.1012,89048.0,89028.0,0.011247]
[1769545536682,0.1012,89048.0,89023.0,0.0098296]
[1769545536683,0.1012,89048.0,89029.0,0.00258838]
[1769545536887,0.011245,89047.0,89032.0,0.0098296]
[1769545537089,0.1012,89048.0,89033.0,0.02366398]
[1769545537482,0.112445,89048.0,89033.0,0.02366398]
[1769545537687,0.1012,89048.0,89033.0,0.01241798]
[1769545537889,0.39736,89061.0,89039.0,0.02052285]
[1769545538092,0.1012,89061.0,89040.0,0.01186523]
[1769545538299,0.011244,89054.0,89040.0,0.01186523]
[1769545539000,0.011244,89054.0,89040.0,0.00258838]
[1769545539291,0.011244,89051.0,89040.0,0.00258838]
[1769545539496,0.011245,89045.0,89032.0,0.00927685]
[1769545539694,0.011245,89045.0,89033.0,0.00258838]
[1769545539894,0.00911403,89060.0,89023.0,0.00927685]
[1769545540091,0.011245,89044.0,89028.0,0.29616]
[1769545540287,0.011245,89044.0,89029.0,0.00258838]
[1769545540598,0.011245,89042.0,89029.0,0.00258838]
[1769545540798,0.011245,89045.0,89029.0,0.00258838]
[1769545540999,0.011245,89047.0,89030.0,0.112447]
[1769545541195,0.00911403,89057.0,89031.0,0.00258838]
[1769545541196,0.011245,89045.0,89031.0,0.00258838]
[1769545541396,0.011245,89045.0,89032.0,0.1012]
[1769545541694,0.011246,89040.0,89023.0,0.00927685]
[1769545541996,0.011246,89040.0,89027.0,0.00258838]
[1769545542603,0.011246,89037.0,89023.0,0.29616]
[1769545542797,0.00911403,89045.0,89024.0,0.00258838]
[1769545542998,0.00911403,89042.0,89025.0,0.1012]
[1769545543304,0.1012,89048.0,89015.0,0.10378838]
[1769545543305,0.00911403,89034.0,89015.0,0.10378838]
[1769545543488,0.011245,89045.0,89018.0,0.01383638]
[1769545543693,0.011245,89044.0,89022.0,0.00927685]
[1769545543888,0.011245,89044.0,89024.0,0.011247]
[1769545543889,0.1012,89044.0,89024.0,0.011247]
[1769545544089,0.1012,89044.0,89025.0,0.00258838]
[1769545544805,0.011246,89040.0,89025.0,0.00258838]
[1769545544998,0.011246,89038.0,89025.0,0.00258838]
[1769545545302,0.011246,89036.0,89025.0,0.00258838]
[1769545545491,0.011245,89041.0,89026.0,0.011247]
[1769545545691,0.011242,89068.0,89031.0,0.00927685]
[1769545545692,0.11031403,89056.0,89031.0,0.00927685]
[1769545545997,0.1012,89055.0,89032.0,0.01383538]
[1769545546193,0.011244,89054.0,89036.0,0.011246]
[1769545546394,0.011244,89052.0,89036.0,0.00258838]
[1769545546903,0.011244,89053.0,89036.0,0.01383438]
[1769545547296,0.011244,89053.0,89036.0,0.00258838]
[1769545547504,0.1012,89055.0,89039.0,0.011246]
[1769545547694,0.1012,89055.0,89039.0,0.01383438]
[1769545549400,0.1012,89055.0,89039.0,0.00258838]
[1769545549806,0.011244,89054.0,89039.0,0.00258838]
[1769545550006,0.011242,89070.0,89047.0,0.00933384]
[1769545550200,0.1012,89080.0,89049.0,0.00933384]
[1769545550395,0.11302994,89079.0,89061.0,0.011243]
[1769545550600,0.011241,89079.0,89062.0,0.00258838]
[1769545551107,0.11302455,89078.0,89062.0,0.00258838]
[1769545551308,0.11302455,89077.0,89062.0,0.00258838]
[1769545551603,0.1012,89080.0,89067.0,0.011242]
[1769545551810,0.011,89087.0,89072.0,0.011241]
[1769545552014,0.011,89087.0,89073.0,0.00258838]
[1769545552697,0.00199846,89098.0,89073.0,0.01199385]
[1769545552901,0.1012,89100.0,89080.0,0.00940547]
[1769545553107,0.10957801,89099.0,89083.0,0.01124]
[1769545553318,0.011238,89098.0,89084.0,0.00258838]
[1769545555104,0.1012,89100.0,89084.0,0.00258838]
[1769545555307,0.112438,89100.0,89084.0,0.00258838]
[1769545555708,0.1012,89100.0,89084.0,0.01382838]
[1769545555910,0.022237,89107.0,89088.0,0.011239]
[1769545556116,0.022237,89107.0,89090.0,0.011239]
[1769545556313,0.011,89107.0,89091.0,0.00258838]
[1769545556616,0.011236,89120.0,89097.0,0.02054868]
[1769545556808,0.011236,89118.0,89098.0,0.00258838]
[1769545557110,0.11859577,89117.0,89098.0,0.00258838]
[1769545557318,0.011238,89103.0,89090.0,0.10116]
[1769545557500,0.011238,89101.0,89090.0,0.10116]
[1769545557706,0.00928202,89099.0,89072.0,0.00922047]
[1769545557901,0.01124,89089.0,89073.0,0.1020232]
[1769545558107,0.002588,89088.0,89073.0,0.1020232]
[1769545558302,0.002588,89088.0,89074.0,0.011241]
[1769545558507,0.002588,89088.0,89075.0,0.0008632]
[1769545558906,0.002588,89088.0,89079.0,0.011241]
[1769545559109,0.10116,89110.0,89084.0,0.01124]
[1769545559110,0.00928202,89109.0,89084.0,0.01124]
[1769545559417,0.002588,89098.0,89085.0,0.0008632]
[1769545560412,0.112397,89110.0,89087.0,0.00922047]
[1769545560607,0.011238,89102.0,89088.0,0.0008632]
[1769545560910,0.002588,89101.0,89088.0,0.0008632]
[1769545561118,0.10116,89110.0,89094.0,0.011239]
[1769545561320,0.103748,89110.0,89095.0,0.0008632]
[1769545562014,0.10116,89122.0,89095.0,0.01008367]
[1769545562216,0.002588,89121.0,89104.0,0.00922047]
[1769545562413,0.002588,89121.0,89109.0,0.011237]
[1769545562612,0.00928202,89128.0,89104.0,0.11038047]
[1769545562613,0.011234,89130.0,89111.0,0.011237]
[1769545562811,0.10116,89134.0,89095.0,0.00922047]
[1769545562812,0.01187002,89121.0,89095.0,0.00922047]
[1769545563016,0.00928202,89118.0,89098.0,0.011238]
[1769545563317,0.002588,89117.0,89100.0,0.011238]
[1769545563522,0.002588,89117.0,89101.0,0.0008632]
[1769545563724,0.002588,89117.0,89102.0,0.10116]
[1769545563910,0.002588,89117.0,89107.0,0.011237]
[1769545564218,0.02028202,89127.0,89109.0,0.011237]
[1769545564413,0.002588,89126.0,89110.0,0.0008632]
[1769545564811,0.011235,89122.0,89110.0,0.0008632]
[1769545565119,0.013823,89121.0,89103.0,0.011238]
[1769545565323,0.002588,89121.0,89105.0,0.011237]
[1769545565514,0.002588,89121.0,89106.0,0.0008632]
[1769545566914,0.002588,89121.0,89111.0,0.011237]
[1769545567114,0.002588,89121.0,89112.0,0.0008632]
[1769545567313,0.002588,89121.0,89106.0,0.011237]
[1769545567615,0.002588,89121.0,89107.0,0.0008632]
[1769545568517,0.011236,89119.0,89107.0,0.0008632]
[1769545568814,0.011,89127.0,89107.0,0.0008632]
[1769545569121,0.002588,89126.0,89109.0,0.00922047]
[1769545569314,0.002588,89126.0,89111.0,0.00922047]
[1769545569516,0.002588,89126.0,89113.0,0.011236]
[1769545569713,0.011,89127.0,89113.0,0.011236]
[1769545569714,0.011,89127.0,89114.0,0.0008632]
[1769545569916,0.013588,89127.0,89117.0,0.011236]
[1769545570112,0.013588,89127.0,89118.0,0.0008632]
[1769545570716,0.10112,89138.0,89118.0,0.0008632]
[1769545570922,0.002588,89137.0,89118.0,0.0008632]
[1769545571222,0.00928202,89136.0,89111.0,0.11034047]
[1769545571417,0.00928202,89125.0,89094.0,0.00922047]
[1769545571719,0.00928202,89122.0,89103.0,0.0008632]
[1769545571917,0.002588,89121.0,89105.0,0.011237]
[1769545572113,0.002588,89121.0,89109.0,0.011237]
[1769545572427,0.11040202,89138.0,89110.0,0.01008367]
[1769545572612,0.00928202,89136.0,89110.0,0.01008367]
[1769545572813,0.002588,89135.0,89110.0,0.01008367]
[1769545573321,0.002588,89135.0,89112.0,0.011236]
[1769545573519,0.00928202,89134.0,89113.0,0.0008632]
[1769545573711,0.01187002,89133.0,89113.0,0.0008632]
[1769545574122,0.011234,89131.0,89114.0,0.011236]
[1769545574323,0.011234,89131.0,89110.0,0.00922047]
[1769545574324,0.011235,89127.0,89115.0,0.0008632]
[1769545574525,0.002588,89126.0,89115.0,0.0008632]
[1769545575214,0.10112,89138.0,89115.0,0.0008632]
[1769545575415,0.11081181,89137.0,89115.0,0.0008632]
[1769545575616,0.11750583,89136.0,89115.0,0.0008632]
[1769545575831,0.011235,89127.0,89110.0,0.02045747]
[1769545576124,0.002588,89126.0,89111.0,0.0008632]
[1769545576423,0.002588,89126.0,89112.0,0.011236]
[1769545576614,0.013823,89126.0,89113.0,0.0008632]
[1769545576814,0.002588,89126.0,89106.0,0.29592]
[1769545577016,0.01187002,89126.0,89114.0,0.10112]
[1769545577228,0.00153213,89125.0,89114.0,0.08958787]
[1769545577430,0.002588,89124.0,89114.0,0.09045107]
[1769545577821,0.10112,89138.0,89114.0,0.09045107]
[1769545578022,0.011234,89132.0,89114.0,0.09045107]
[1769545578222,0.10848248,89131.0,89117.0,0.011236]
[1769545578530,0.10589448,89130.0,89118.0,0.0008632]
[1769545578720,0.002588,89129.0,89118.0,0.0008632]
[1769545578925,0.011234,89128.0,89118.0,0.0008632]
[1769545579129,0.002588,89127.0,89118.0,0.0008632]
[1769545579821,0.011235,89126.0,89118.0,0.0008632]
[1769545580015,0.002588,89125.0,89118.0,0.0008632]
[1769545582323,0.002588,89125.0,89118.0,0.0120992]
[1769545582531,0.011234,89132.0,89118.0,0.0120992]
[1769545582717,0.002588,89131.0,89118.0,0.0120992]
[1769545583233,0.013822,89131.0,89118.0,0.0008632]
[1769545583430,0.002588,89131.0,89118.0,0.0008632]
[1769545583629,0.011235,89124.0,89118.0,0.0008632]
[1769545583829,0.011236,89119.0,89104.0,0.10112]
[1769545584126,0.10112,89138.0,89104.0,0.10112]
[1769545584127,0.011234,89131.0,89105.0,0.0008632]
[1769545584328,0.011235,89125.0,89111.0,0.02131871]
[1769545584528,0.002588,89125.0,89112.0,0.0008632]
[1769545585024,0.002588,89125.0,89115.0,0.011236]
[1769545585333,0.002588,89125.0,89116.0,0.0008632]
[1769545586129,0.002588,89125.0,89111.0,0.011237]
[1769545586328,0.002588,89125.0,89112.0,0.0008632]
[1769545586721,0.013823,89125.0,89112.0,0.0008632]